fUST/lending_fUST_20240829
["ID","MTS","AMOUNT","RATE_DAILY","PERIOD"]
[336483404,1724873446649,-500.0,0.0001978,2]
[336483405,1724873446661,-151.0,0.00019781,2]
[336483406,1724873446670,-280.152415,0.00019781,2]
[336483407,1724873446680,-280.152415,0.00019781,2]
[336483408,1724873446690,-151.0,0.00019781,2]
[336483409,1724873446699,-151.0,0.00019781,2]
[336483410,1724873446708,-190.891163,0.00019781,2]
[336483411,1724873446718,-190.891163,0.00019781,2]
[336483412,1724873446728,-543.210374,0.00019781,2]
[336483413,1724873446738,-543.210374,0.00019781,2]
[336483414,1724873446749,-151.0,0.00019781,2]
[336483415,1724873446759,-306.101845,0.00019782,2]
[336483416,1724873446769,-306.101845,0.00019782,2]
[336483417,1724873446779,-167.976653,0.00019782,2]
[336483418,1724873446788,-167.976653,0.00019782,2]
[336483420,1724873446798,-500.0,0.00019784,2]
[336483422,1724873446807,-162.16111,0.00019785,2]
[336483424,1724873446816,-162.16111,0.00019785,2]
[336483426,1724873446827,-222.200896,0.00019785,2]
[336483428,1724873446836,-222.200896,0.00019785,2]
[336483430,1724873446846,-465.00001941,0.00019801,2]
[336483432,1724873446856,-10168.0380117,0.0001987,2]
[336483433,1724873446866,-500.0,0.00019871,2]
[336483434,1724873446875,-500.0,0.00019871,2]
[336483435,1724873446885,-206.58097831,0.00019872,5]
[336483436,1724873446896,-30504.114035,0.00019872,2]
[336483437,1724873446908,-172.416327,0.00019872,2]
[336483438,1724873446918,-172.416327,0.00019872,2]
[336483439,1724873446927,-306.101845,0.00019872,2]
[336483440,1724873446937,-306.101851,0.00019872,2]
[336483441,1724873446947,-167.976653,0.00019872,2]
[336483442,1724873446957,-167.976645,0.00019872,2]
[336483443,1724873446967,-151.0,0.00019872,2]
[336483444,1724873446977,-366.391168,0.00019872,2]
[336483445,1724873446987,-366.391168,0.00019872,2]
[336483446,1724873446998,-151.0,0.00019872,2]
[336483447,1724873447008,-302.468659,0.00019872,2]
[336483448,1724873447018,-302.468659,0.00019872,2]
[336483449,1724873447028,-413.368757,0.00019872,2]
[336483450,1724873447037,-413.368757,0.00019872,2]
[336483451,1724873447047,-500.0,0.00019873,2]
[336483452,1724873447056,-151.0,0.00019873,2]
[336483453,1724873447065,-256.451306,0.00019873,2]
[336483454,1724873447207,-256.451306,0.00019873,2]
[336483455,1724873447217,-151.0,0.00019873,2]
[336483456,1724873447227,-151.0,0.00019873,2]
[336483457,1724873447237,-151.0,0.00019873,2]
[336483458,1724873447248,-351.548288,0.00019873,2]
[336483459,1724873447258,-151.0,0.00019873,2]
[336483460,1724873447268,-151.0,0.00019873,2]
[336483461,1724873447278,-405.612238,0.00019873,2]
[336483462,1724873447290,-405.612238,0.00019873,2]
[336483463,1724873447300,-151.0,0.00019873,2]
[336483464,1724873447310,-151.0,0.00019873,2]
[336483465,1724873447319,-151.0,0.00019873,2]
[336483466,1724873447329,-448.452117,0.00019873,2]
[336483467,1724873447339,-448.452117,0.00019873,2]
[336483468,1724873447350,-151.0,0.00019873,2]
[336483469,1724873447360,-226.427393,0.00019873,2]
[336483470,1724873447370,-226.427393,0.00019873,2]
[336483471,1724873447380,-151.0,0.00019873,2]
[336483472,1724873447390,-192.58345,0.00019873,2]
[336483473,1724873447401,-151.0,0.00019873,2]
[336483474,1724873447411,-192.58345,0.00019873,2]
[336483475,1724873447420,-403.523133,0.00019873,2]
[336483476,1724873447430,-403.523133,0.00019873,2]
[336483477,1724873447440,-232.638371,0.00019873,2]
[336483478,1724873447450,-232.638371,0.00019873,2]
[336483479,1724873447460,-1120.64,0.00019879,2]
[336483480,1724873447470,-768.23,0.00019879,2]
[336483481,1724873447480,-346.67,0.00019879,2]
[336483482,1724873447491,-1543.42,0.00019879,2]
[336483483,1724873447501,-500.0,0.00019879,2]
[336483484,1724873447511,-500.0,0.00019879,2]
[336483485,1724873447522,-500.0,0.00019879,2]
[336483486,1724873447534,-1151.87,0.00019879,2]
[336483487,1724873447544,-500.0,0.00019879,2]
[336483488,1724873447555,-677.56,0.00019879,2]
[336483489,1724873447566,-500.0,0.00019879,2]
[336483490,1724873447576,-500.0,0.00019879,2]
[336483491,1724873447586,-965.27,0.00019879,2]
[336483492,1724873447595,-500.0,0.00019879,2]
[336483493,1724873447605,-5379.39,0.00019879,2]
[336483494,1724873447616,-500.0,0.00019879,2]
[336483495,1724873447628,-500.0,0.00019879,2]
[336483496,1724873447639,-500.0,0.00019879,2]
[336483497,1724873447650,-698.36,0.00019879,2]
[336483498,1724873447659,-492.73578224,0.00019879,2]
[336483499,1724873447670,-309.44,0.0001988,2]
[336483500,1724873447679,-500.0,0.0001988,2]
[336483501,1724873447688,-500.0,0.0001988,2]
[336483502,1724873447699,-500.0,0.0001988,2]
[336483503,1724873447709,-500.0,0.0001988,2]
[336483504,1724873447719,-418.3,0.0001988,2]
[336483505,1724873447729,-191.76,0.0001988,2]
[336483506,1724873447738,-226.02,0.0001988,2]
[336483507,1724873447748,-500.0,0.0001988,2]
[336483508,1724873447757,-668.39,0.0001988,2]
[336483509,1724873447767,-517.18,0.0001988,2]
[336483510,1724873447776,-1062.16,0.0001988,2]
[336483511,1724873447786,-500.0,0.0001988,2]
[336483512,1724873447796,-500.0,0.0001988,2]
[336483513,1724873447806,-1158.57,0.0001988,2]
[336483514,1724873447816,-500.0,0.0001988,2]
[336483515,1724873447826,-3725.12,0.0001988,2]
[336483516,1724873447835,-500.0,0.0001988,2]
[336483517,1724873447845,-500.0,0.0001988,2]
[336483518,1724873447854,-500.0,0.0001988,2]
[336483519,1724873447864,-500.0,0.0001988,2]
[336483520,1724873447875,-500.0,0.0001988,2]
[336483521,1724873447885,-500.0,0.0001988,2]
[336483522,1724873447895,-1085.53,0.0001988,2]
[336483523,1724873447907,-500.0,0.0001988,2]
[336483524,1724873447917,-784.98,0.0001988,2]
[336483525,1724873447926,-500.0,0.0001988,2]
[336483526,1724873447936,-500.0,0.0001988,2]
[336483527,1724873447945,-588.83,0.0001988,2]
[336483528,1724873447955,-500.0,0.0001988,2]
[336483529,1724873447972,-151.0,0.0001988,2]
[336483530,1724873447981,-151.0,0.0001988,2]
[336483531,1724873447991,-151.0,0.0001988,2]
[336483532,1724873448000,-500.0,0.0001988,2]
[336483533,1724873448009,-500.0,0.0001988,2]
[336483534,1724873448019,-500.0,0.0001988,2]
[336483535,1724873448028,-500.0,0.0001988,2]
[336483536,1724873448037,-188.08,0.0001988,2]
[336483537,1724873448047,-500.0,0.0001988,2]
[336483538,1724873448057,-500.0,0.0001988,2]
[336483539,1724873448067,-500.0,0.0001988,2]
[336483540,1724873448079,-151.0,0.0001988,2]
[336483541,1724873448096,-500.0,0.0001988,2]
[336483542,1724873448106,-500.0,0.0001988,2]
[336483543,1724873448115,-500.0,0.0001988,2]
[336483544,1724873448126,-500.0,0.0001988,2]
[336483545,1724873448136,-500.0,0.0001988,2]
[336483546,1724873448146,-500.0,0.0001988,2]
[336483547,1724873448163,-500.0,0.0001988,2]
[336483548,1724873448173,-500.0,0.0001988,2]
[336483549,1724873448183,-500.0,0.0001988,2]
[336483550,1724873448194,-210.516818,0.0001988,2]
[336483551,1724873448205,-151.0,0.0001988,2]
[336483552,1724873448215,-500.0,0.0001988,2]
[336483553,1724873448225,-551.19,0.0001988,2]
[336483554,1724873448235,-210.516818,0.0001988,2]
[336483555,1724873448245,-895.92,0.0001988,2]
[336483556,1724873448255,-500.0,0.0001988,2]
[336483557,1724873448264,-500.0,0.0001988,2]
[336483558,1724873448276,-500.0,0.0001988,2]
[336483559,1724873448285,-864.12,0.0001988,2]
[336483560,1724873448295,-500.0,0.0001988,2]
[336483561,1724873448305,-500.0,0.0001988,2]
[336483562,1724873448314,-634.22,0.0001988,2]
[336483563,1724873448324,-500.0,0.0001988,2]
[336483564,1724873448334,-582.77,0.0001988,2]
[336483565,1724873448344,-500.0,0.0001988,2]
[336483566,1724873448354,-500.0,0.0001988,2]
[336483567,1724873448364,-500.0,0.0001988,2]
[336483568,1724873448373,-500.0,0.0001988,2]
[336483569,1724873448383,-681.690591,0.0001988,2]
[336483570,1724873448393,-500.0,0.0001988,2]
[336483571,1724873448403,-681.690591,0.0001988,2]
[336483572,1724873448412,-500.0,0.0001988,2]
[336483573,1724873448422,-500.0,0.0001988,2]
[336483574,1724873448432,-151.0,0.00019881,2]
[336483575,1724873448442,-151.0,0.00019881,2]
[336483576,1724873448451,-151.0,0.00019881,2]
[336483577,1724873448461,-151.0,0.00019881,2]
[336483578,1724873448471,-151.0,0.00019881,2]
[336483579,1724873448481,-162.16111,0.00019881,2]
[336483580,1724873448491,-162.16111,0.00019881,2]
[336483581,1724873448501,-405.72554,0.00019881,2]
[336483583,1724873448511,-405.72554,0.00019881,2]
[336483584,1724873448520,-222.200896,0.00019881,2]
[336483585,1724873448530,-222.200896,0.00019881,2]
[336483586,1724873448539,-151.0,0.00019881,2]
[336483587,1724873448549,-151.0,0.00019881,2]
[336483588,1724873448559,-280.152415,0.00019881,2]
[336483589,1724873448568,-280.152415,0.00019881,2]
[336483590,1724873448577,-280.152415,0.00019881,2]
[336483591,1724873448587,-280.152415,0.00019881,2]
[336483592,1724873448596,-151.0,0.00019881,2]
[336483593,1724873448606,-151.0,0.00019881,2]
[336483594,1724873448615,-151.0,0.00019881,2]
[336483595,1724873448625,-151.0,0.00019881,2]
[336483596,1724873448635,-190.891163,0.00019881,2]
[336483597,1724873448645,-190.891163,0.00019881,2]
[336483598,1724873448657,-190.891163,0.00019881,2]
[336483599,1724873448666,-190.891163,0.00019881,2]
[336483600,1724873448675,-543.210374,0.00019881,2]
[336483601,1724873448684,-543.210374,0.00019881,2]
[336483602,1724873448693,-543.210374,0.00019881,2]
[336483603,1724873448704,-543.21037903,0.00019881,2]
[336483604,1724873448715,-151.0,0.00019881,2]
[336483605,1724873448724,-151.0,0.00019881,2]
[336483606,1724873448734,-500.0,0.00019881,2]
[336483607,1724873448744,-500.0,0.00019881,2]
[336483608,1724873448754,-186.4,0.00019881,2]
[336483609,1724873448764,-500.0,0.00019881,2]
[336483610,1724873448774,-500.0,0.00019881,2]
[336483611,1724873448783,-500.0,0.00019881,2]
[336483612,1724873448793,-500.0,0.00019881,2]
[336483613,1724873448802,-500.0,0.00019881,2]
[336483614,1724873448812,-500.0,0.00019881,2]
[336483615,1724873448822,-500.0,0.00019881,2]
[336483616,1724873448832,-500.0,0.00019881,2]
[336483617,1724873448841,-500.0,0.00019881,2]
[336483618,1724873448851,-500.0,0.00019881,2]
[336483619,1724873448861,-500.0,0.00019881,2]
[336483620,1724873448870,-586.22,0.00019881,2]
[336483621,1724873448880,-500.0,0.00019881,2]
[336483622,1724873448889,-500.0,0.00019881,2]
[336483623,1724873448899,-500.0,0.00019881,2]
[336483624,1724873448909,-500.0,0.00019881,2]
[336483625,1724873448919,-500.0,0.00019881,2]
[336483626,1724873448929,-500.0,0.00019881,2]
[336483627,1724873448939,-500.0,0.00019881,2]
[336483628,1724873448949,-151.0,0.00019882,2]
[336483629,1724873448960,-211.766646,0.00019882,2]
[336483630,1724873448969,-151.0,0.00019882,2]
[336483631,1724873448979,-238.735819,0.00019882,2]
[336483632,1724873448990,-172.416327,0.00019882,2]
[336483633,1724873448999,-172.416327,0.00019882,2]
[336483634,1724873449010,-162.16111,0.00019882,2]
[336483635,1724873449020,-162.16111,0.00019882,2]
[336483636,1724873449029,-405.72554,0.00019882,2]
[336483637,1724873449038,-405.72554,0.00019882,2]
[336483638,1724873449048,-222.200896,0.00019882,2]
[336483639,1724873449058,-222.200896,0.00019882,2]
[336483640,1724873449068,-1200.0,0.00019882,2]
[336483641,1724873449079,-1200.0,0.00019882,2]
[336483642,1724873449091,-1200.0,0.00019882,2]
[336483643,1724873449101,-1200.0,0.00019882,2]
[336483644,1724873449111,-1200.0,0.00019882,2]
[336483645,1724873449121,-1200.0,0.00019882,2]
[336483646,1724873449132,-1200.0,0.00019882,2]
[336483647,1724873449142,-1200.0,0.00019882,2]
[336483648,1724873449152,-1200.0,0.00019882,2]
[336483649,1724873449163,-1200.0,0.00019882,2]
[336483650,1724873449173,-1200.0,0.00019882,2]
[336483651,1724873449183,-1200.0,0.00019882,2]
[336483652,1724873449193,-1200.0,0.00019882,2]
[336483653,1724873449204,-1200.0,0.00019882,2]
[336483654,1724873449214,-1200.0,0.00019882,2]
[336483655,1724873449224,-1200.0,0.00019882,2]
[336483656,1724873449233,-1200.0,0.00019882,2]
[336483657,1724873449243,-1200.0,0.00019882,2]
[336483658,1724873449254,-1200.0,0.00019882,2]
[336483659,1724873449264,-1200.0,0.00019882,2]
[336483660,1724873449275,-1200.0,0.00019882,2]
[336483661,1724873449285,-1200.0,0.00019882,2]
[336483662,1724873449295,-1200.0,0.00019882,2]
[336483663,1724873449305,-1200.0,0.00019882,2]
[336483664,1724873449315,-1200.0,0.00019882,2]
[336483665,1724873449325,-1200.0,0.00019882,2]
[336483666,1724873449334,-1200.0,0.00019882,2]
[336483667,1724873449344,-1200.0,0.00019882,2]
[336483668,1724873449354,-1200.0,0.00019882,2]
[336483669,1724873449363,-1200.0,0.00019882,2]
[336483670,1724873449373,-1200.0,0.00019882,2]
[336483671,1724873449382,-1200.0,0.00019882,2]
[336483672,1724873449391,-1200.0,0.00019882,2]
[336483673,1724873449402,-1200.0,0.00019882,2]
[336483674,1724873449411,-1200.0,0.00019882,2]
[336483675,1724873449420,-1200.0,0.00019882,2]
[336483676,1724873449430,-1200.0,0.00019882,2]
[336483677,1724873449439,-1200.0,0.00019882,2]
[336483678,1724873449449,-151.0,0.00019882,2]
[336483679,1724873449459,-1200.0,0.00019882,2]
[336483680,1724873449468,-1200.0,0.00019882,2]
[336483681,1724873449478,-1200.0,0.00019882,2]
[336483682,1724873449487,-1200.0,0.00019882,2]
[336483683,1724873449497,-1200.0,0.00019882,2]
[336483684,1724873449507,-1200.0,0.00019882,2]
[336483685,1724873449517,-1200.0,0.00019882,2]
[336483686,1724873449528,-1200.0,0.00019882,2]
[336483687,1724873449538,-194.98,0.00019882,2]
[336483688,1724873449547,-280.152415,0.00019882,2]
[336483689,1724873449557,-280.152409,0.00019882,2]
[336483690,1724873449567,-151.0,0.00019882,2]
[336483691,1724873449576,-500.0,0.00019882,2]
[336483692,1724873449586,-500.0,0.00019882,2]
[336483693,1724873449596,-500.0,0.00019882,2]
[336483694,1724873449605,-500.0,0.00019882,2]
[336483695,1724873449614,-500.0,0.00019882,2]
[336483696,1724873449624,-158.3,0.00019882,2]
[336483697,1724873449633,-500.0,0.00019882,2]
[336483698,1724873449643,-428.6,0.00019882,2]
[336483699,1724873449654,-744.0,0.00019882,2]
[336483700,1724873449663,-151.0,0.00019882,2]
[336483701,1724873449673,-608.85,0.00019882,2]
[336483702,1724873449683,-256.451306,0.00019882,2]
[336483703,1724873449693,-256.451306,0.00019882,2]
[336483704,1724873449704,-151.0,0.00019882,2]
[336483705,1724873449714,-151.0,0.00019882,2]
[336483706,1724873449724,-299.48,0.00019882,2]
[336483707,1724873449734,-286.46,0.00019882,2]
[336483708,1724873449744,-151.0,0.00019882,2]
[336483709,1724873449754,-500.0,0.00019882,2]
[336483710,1724873449763,-211.8,0.00019882,2]
[336483711,1724873449773,-351.548288,0.00019882,2]
[336483712,1724873449783,-589.18,0.00019882,2]
[336483713,1724873449793,-500.0,0.00019882,2]
[336483714,1724873449803,-500.0,0.00019882,2]
[336483715,1724873449812,-500.0,0.00019882,2]
[336483716,1724873449823,-500.0,0.00019882,2]
[336483717,1724873449834,-321.73,0.00019882,2]
[336483718,1724873449843,-151.0,0.00019882,2]
[336483719,1724873449853,-151.0,0.00019882,2]
[336483720,1724873449863,-366.391168,0.00019882,2]
[336483721,1724873449873,-405.612238,0.00019882,2]
[336483722,1724873449883,-366.391168,0.00019882,2]
[336483723,1724873449892,-405.612238,0.00019882,2]
[336483724,1724873449902,-151.0,0.00019882,2]
[336483725,1724873449912,-151.0,0.00019882,2]
[336483726,1724873449922,-302.468659,0.00019882,2]
[336483727,1724873449931,-1908.595044,0.00019882,2]
[336483728,1724873449940,-302.468659,0.00019882,2]
[336483729,1724873449950,-413.368757,0.00019882,2]
[336483730,1724873449960,-413.368757,0.00019882,2]
[336483731,1724873449970,-448.452117,0.00019882,2]
[336483732,1724873449980,-448.452117,0.00019882,2]
[336483733,1724873449989,-500.0,0.00019882,2]
[336483734,1724873449999,-226.427393,0.00019882,2]
[336483735,1724873450008,-226.427393,0.00019882,2]
[336483736,1724873450018,-151.0,0.00019882,2]
[336483737,1724873450028,-192.58345,0.00019882,2]
[336483738,1724873450037,-500.0,0.00019882,2]
[336483739,1724873450047,-151.0,0.00019882,2]
[336483740,1724873450056,-192.58345,0.00019882,2]
[336483741,1724873450067,-500.0,0.00019882,2]
[336483742,1724873450079,-500.0,0.00019882,2]
[336483743,1724873450089,-550.79,0.00019882,2]
[336483744,1724873450099,-500.0,0.00019882,2]
[336483745,1724873450108,-151.0,0.00019882,2]
[336483746,1724873450119,-151.0,0.00019882,2]
[336483747,1724873450128,-151.0,0.00019882,2]
[336483748,1724873450137,-403.523133,0.00019882,2]
[336483749,1724873450147,-403.523133,0.00019882,2]
[336483750,1724873450158,-151.0,0.00019882,2]
[336483751,1724873450168,-210.516818,0.00019882,2]
[336483752,1724873450178,-500.0,0.00019882,2]
[336483753,1724873450187,-151.0,0.00019882,2]
[336483754,1724873450196,-210.516818,0.00019882,2]
[336483755,1724873450206,-681.690591,0.00019882,2]
[336483756,1724873450216,-681.690591,0.00019882,2]
[336483757,1724873450226,-500.0,0.00019882,2]
[336483758,1724873450235,-232.638371,0.00019882,2]
[336483759,1724873450245,-500.0,0.00019882,2]
[336483760,1724873450255,-232.638371,0.00019882,2]
[336483761,1724873450264,-718.35,0.00019882,2]
[336483762,1724873450274,-500.0,0.00019883,2]
[336483763,1724873450283,-500.0,0.00019883,2]
[336483764,1724873450292,-500.0,0.00019883,2]
[336483765,1724873450302,-151.0,0.00019884,2]
[336483766,1724873450311,-172.416327,0.00019884,2]
[336483767,1724873450320,-172.416327,0.00019884,2]
[336483768,1724873450329,-405.72554,0.00019891,2]
[336483769,1724873450339,-405.72554,0.00019891,2]
[336483770,1724873450348,-222.200896,0.00019891,2]
[336483771,1724873450357,-222.200896,0.00019891,2]
[336483772,1724873450366,-500.0,0.00019892,2]
[336483773,1724873450375,-151.0,0.00019893,2]
[336483774,1724873450385,-151.0,0.00019893,2]
[336483775,1724873450394,-162.16111,0.00019893,2]
[336483776,1724873450404,-162.16111,0.00019893,2]
[336483777,1724873450413,-2452.0155243,0.00019917,2]
[336483778,1724873450422,-981.00242752,0.0002,10]
[336483779,1724873450432,-3000.0,0.0002,4]
[336483780,1724873450442,-151.0,0.0002,2]
[336483781,1724873450451,-155.37417011,0.0002,2]
[336483782,1724873450462,-366.391168,0.00020053,2]
[336483783,1724873450471,-366.391168,0.00020053,2]
[336483784,1724873450480,-151.0,0.00020053,2]
[336483785,1724873450490,-302.468659,0.00020053,2]
[336483786,1724873450499,-302.468659,0.00020053,2]
[336483787,1724873450509,-413.368757,0.00020053,2]
[336483788,1724873450518,-413.368757,0.00020053,2]
[336483789,1724873450527,-3000.0,0.000201,4]
[336483790,1724873450536,-10168.0380117,0.00020143,2]
[336483791,1724873450547,-500.0,0.00020144,2]
[336483792,1724873450556,-172.416327,0.00020145,2]
[336483793,1724873450566,-172.416327,0.00020145,2]
[336483794,1724873450699,-151.0,0.00020145,2]
[336483795,1724873450709,-448.452117,0.00020145,2]
[336483796,1724873450719,-448.452117,0.00020145,2]
[336483797,1724873450728,-226.427393,0.00020145,2]
[336483798,1724873450738,-151.0,0.00020145,2]
[336483799,1724873450747,-226.427393,0.00020145,2]
[336483800,1724873450756,-192.58345,0.00020145,2]
[336483801,1724873450765,-151.0,0.00020145,2]
[336483802,1724873450775,-192.58345,0.00020145,2]
[336483803,1724873450784,-151.0,0.00020145,2]
[336483804,1724873450793,-151.0,0.00020145,2]
[336483805,1724873450803,-151.0,0.00020145,2]
[336483806,1724873450812,-403.523133,0.00020145,2]
[336483807,1724873450822,-403.523133,0.00020145,2]
[336483808,1724873450832,-151.0,0.00020145,2]
[336483809,1724873450841,-232.638371,0.00020145,2]
[336483810,1724873450851,-232.638371,0.00020145,2]
[336483811,1724873450860,-500.0,0.00020145,2]
[336483812,1724873450869,-500.0,0.00020145,2]
[336483813,1724873450878,-10168.0380117,0.00020145,2]
[336483814,1724873450887,-162.16111,0.00020146,2]
[336483815,1724873450897,-162.161104,0.00020146,2]
[336483816,1724873450907,-222.200896,0.00020146,2]
[336483817,1724873450916,-222.200898,0.00020146,2]
[336483818,1724873450926,-151.0,0.00020146,2]
[336483819,1724873450935,-256.451306,0.00020146,2]
[336483820,1724873450945,-256.451306,0.00020146,2]
[336483821,1724873450955,-151.0,0.00020146,2]
[336483822,1724873450964,-151.0,0.00020146,2]
[336483823,1724873450974,-157.515936,0.00020146,2]
[336483824,1724873450984,-351.548288,0.00020146,2]
[336483825,1724873450994,-151.0,0.00020146,2]
[336483826,1724873451004,-151.0,0.00020146,2]
[336483827,1724873451013,-405.612238,0.00020146,2]
[336483828,1724873451022,-405.612238,0.00020146,2]
[336483829,1724873451032,-500.0,0.00020146,2]
[336483830,1724873451042,-405.72554,0.00020147,2]
[336483831,1724873451052,-405.72554,0.00020147,2]
[336483832,1724873451061,-151.0,0.00020148,2]
[336483833,1724873451071,-151.0,0.00020148,2]
[336483834,1724873451083,-1120.64,0.00020153,2]
[336483835,1724873451092,-768.23,0.00020153,2]
[336483836,1724873451102,-1543.42,0.00020153,2]
[336483837,1724873451111,-500.0,0.00020153,2]
[336483838,1724873451121,-500.0,0.00020153,2]
[336483839,1724873451131,-500.0,0.00020153,2]
[336483840,1724873451140,-1151.87,0.00020153,2]
[336483841,1724873451149,-500.0,0.00020153,2]
[336483842,1724873451160,-677.56,0.00020153,2]
[336483843,1724873451170,-500.0,0.00020153,2]
[336483844,1724873451179,-500.0,0.00020153,2]
[336483845,1724873451188,-965.27,0.00020153,2]
[336483846,1724873451197,-500.0,0.00020153,2]
[336483847,1724873451207,-5379.39,0.00020153,2]
[336483848,1724873451216,-500.0,0.00020153,2]
[336483849,1724873451226,-500.0,0.00020153,2]
[336483850,1724873451236,-500.0,0.00020153,2]
[336483851,1724873451245,-698.36,0.00020153,2]
[336483852,1724873451254,-500.0,0.00020154,2]
[336483853,1724873451264,-500.0,0.00020154,2]
[336483854,1724873451273,-500.0,0.00020154,2]
[336483855,1724873451282,-500.0,0.00020154,2]
[336483856,1724873451291,-500.0,0.00020154,2]
[336483857,1724873451303,-668.39,0.00020154,2]
[336483858,1724873451312,-1062.16,0.00020154,2]
[336483859,1724873451322,-500.0,0.00020154,2]
[336483860,1724873451331,-500.0,0.00020154,2]
[336483861,1724873451342,-1158.57,0.00020154,2]
[336483862,1724873451351,-500.0,0.00020154,2]
[336483863,1724873451360,-3725.12,0.00020154,2]
[336483864,1724873451370,-500.0,0.00020154,2]
[336483865,1724873451380,-500.0,0.00020154,2]
[336483866,1724873451389,-500.0,0.00020154,2]
[336483867,1724873451399,-500.0,0.00020154,2]
[336483868,1724873451410,-500.0,0.00020154,2]
[336483869,1724873451420,-500.0,0.00020154,2]
[336483870,1724873451430,-1085.53,0.00020154,2]
[336483871,1724873451440,-500.0,0.00020154,2]
[336483872,1724873451449,-784.98,0.00020154,2]
[336483873,1724873451459,-500.0,0.00020154,2]
[336483874,1724873451468,-500.0,0.00020154,2]
[336483875,1724873451477,-588.83,0.00020154,2]
[336483876,1724873451487,-500.0,0.00020154,2]
[336483877,1724873451496,-500.0,0.00020154,2]
[336483878,1724873451506,-500.0,0.00020154,2]
[336483879,1724873451516,-500.0,0.00020154,2]
[336483880,1724873451526,-500.0,0.00020154,2]
[336483881,1724873451535,-500.0,0.00020154,2]
[336483882,1724873451544,-500.0,0.00020154,2]
[336483883,1724873451554,-151.0,0.00020154,2]
[336483884,1724873451563,-500.0,0.00020154,2]
[336483885,1724873451573,-555.10699459,0.00020154,2]
[336483886,1724873451582,-500.0,0.00020154,2]
[336483887,1724873451591,-500.0,0.00020154,2]
[336483888,1724873451601,-500.0,0.00020154,2]
[336483889,1724873451611,-500.0,0.00020154,2]
[336483890,1724873451620,-210.516818,0.00020154,2]
[336483891,1724873451630,-500.0,0.00020154,2]
[336483892,1724873451640,-895.92,0.00020154,2]
[336483893,1724873451649,-210.516818,0.00020154,2]
[336483894,1724873451660,-500.0,0.00020154,2]
[336483895,1724873451670,-626.86,0.00020154,2]
[336483896,1724873451679,-500.0,0.00020154,2]
[336483897,1724873451689,-864.12,0.00020154,2]
[336483898,1724873451698,-500.0,0.00020154,2]
[336483899,1724873451708,-500.0,0.00020154,2]
[336483900,1724873451718,-500.0,0.00020154,2]
[336483901,1724873451726,-582.77,0.00020154,2]
[336483902,1724873451735,-503.78,0.00020154,2]
[336483903,1724873451744,-500.0,0.00020154,2]
[336483904,1724873451753,-681.690591,0.00020154,2]
[336483905,1724873451762,-681.690591,0.00020154,2]
[336483906,1724873451772,-151.0,0.00020155,2]
[336483907,1724873451782,-500.0,0.00020155,2]
[336483908,1724873451791,-500.0,0.00020155,2]
[336483909,1724873451800,-500.0,0.00020155,2]
[336483910,1724873451810,-649.21,0.00020155,2]
[336483911,1724873451820,-500.0,0.00020155,2]